bitfinex-derivatives/quotes_ETHF0:USTF0_20241007
["timestamp","ask_amount","ask_price","bid_price","bid_amount"]
[1728266336550,0.28032,2497.3,2496.8,0.28036]
[1728266336747,1.12009,2497.6,2497.1,0.28033]
[1728266337064,0.8398,2497.6,2496.8,3.6304]
[1728266337359,3.0903,2497.5,2497.0,0.28034]
[1728266338458,3.0903,2497.5,2496.8,3.6304]
[1728266338459,3.0903,2497.5,2497.1,0.28033]
[1728266338754,2.81,2497.5,2496.8,3.6304]
[1728266338952,2.81,2497.5,2497.1,0.28033]
[1728266340461,2.81,2497.5,2497.2,0.28032]
[1728266340654,2.81,2497.5,2496.8,3.6304]
[1728266341160,2.81,2497.5,2497.0,0.28033]
[1728266341362,3.09029,2497.5,2497.0,0.28033]
[1728266341559,2.81,2497.5,2496.8,3.6304]
[1728266341758,2.81,2497.5,2497.1,0.28033]
[1728266341953,4.0476,2497.6,2497.4,0.28029]
[1728266342158,4.0476,2497.6,2497.2,0.3984]
[1728266342461,4.0476,2497.6,2497.4,0.28029]
[1728266343461,4.0476,2497.6,2497.2,0.3984]
[1728266343658,4.0476,2497.6,2497.4,0.28029]
[1728266343858,4.0476,2497.6,2497.5,0.28029]
[1728266344057,4.0476,2497.6,2497.2,0.3984]
[1728266344365,4.0476,2497.6,2497.3,0.28031]
[1728266345154,0.8398,2497.6,2497.3,0.28031]
[1728266346557,0.8398,2497.6,2497.2,0.3984]
[1728266346756,4.127,2498.3,2497.9,0.28023]
[1728266346961,0.407,2498.1,2498.0,0.28023]
[1728266347160,0.3902,2498.5,2497.9,0.4142]
[1728266347363,0.3902,2498.5,2498.3,0.28019]
[1728266347672,0.3902,2498.5,2497.9,0.4142]
[1728266347870,0.3902,2498.5,2498.2,0.2802]
[1728266348466,0.67038,2498.5,2498.1,0.28022]
[1728266348660,0.28019,2498.4,2498.0,0.28023]
[1728266348962,3.2002,2498.5,2497.8,3.6272]
[1728266348963,0.28021,2498.2,2497.8,0.28025]
[1728266349163,0.28024,2498.0,2497.6,0.28028]
[1728266349473,0.28024,2498.0,2497.4,3.9977]
[1728266349474,3.636,2498.1,2497.4,3.4881]
[1728266349475,0.28026,2497.8,2497.4,3.4881]
[1728266350062,3.1955,2497.9,2497.4,3.2078]
[1728266350258,3.47575,2497.9,2497.5,0.28028]
[1728266351168,0.3855,2497.9,2497.4,3.2078]
[1728266351369,0.3855,2497.9,2497.7,0.28027]
[1728266351562,0.826,2498.1,2497.8,0.399]
[1728266351873,0.826,2498.1,2497.9,0.28024]
[1728266352061,0.4025,2498.1,2498.0,0.28023]
[1728266355181,0.4025,2498.1,2497.8,0.399]
[1728266355380,3.2125,2498.1,2497.8,0.67925]
[1728266355580,0.4001,2498.0,2497.8,0.67925]
[1728266355775,0.4001,2498.0,2497.9,0.28024]
[1728266356374,0.4025,2498.1,2497.9,0.28024]
[1728266356782,0.4025,2498.1,2497.8,0.399]
[1728266356981,0.7979,2498.3,2497.9,4.0032]
[1728266357178,0.7979,2498.3,2498.1,0.28022]
[1728266357384,1.1851,2498.3,2498.1,0.28022]
[1728266357575,1.1851,2498.3,2497.9,0.4004]
[1728266357882,1.1851,2498.3,2498.0,0.28023]
[1728266358084,1.1851,2498.3,2497.8,0.399]
[1728266358085,1.4653,2498.3,2497.8,0.399]
[1728266358289,1.4653,2498.3,2497.9,0.28024]
[1728266358474,1.1851,2498.3,2498.0,0.28023]
[1728266358779,3.9951,2498.3,2498.0,0.28023]
[1728266359281,0.28021,2498.2,2497.8,0.67925]
[1728266360081,0.28021,2498.2,2497.8,0.399]
[1728266360281,0.28021,2498.2,2497.8,0.67925]
[1728266360781,3.9951,2498.3,2497.8,0.399]
[1728266360981,4.2753,2498.3,2497.9,0.28024]
[1728266361589,3.9951,2498.3,2497.9,0.28024]
[1728266361889,1.1851,2498.3,2498.1,0.28022]
[1728266362095,5.1883,2498.3,2497.8,0.399]
[1728266362290,1.1851,2498.3,2498.0,0.28023]
[1728266365385,3.9951,2498.3,2497.8,0.399]
[1728266365890,3.9951,2498.3,2497.9,0.28024]
[1728266366388,3.9951,2498.3,2498.0,0.28023]
[1728266368090,3.9951,2498.3,2497.8,0.399]
[1728266368292,3.9951,2498.3,2497.9,0.28024]
[1728266368887,3.9951,2498.3,2497.8,0.399]
[1728266369389,3.9951,2498.3,2497.8,0.67925]
[1728266369692,0.28021,2498.2,2497.8,0.67925]
[1728266370488,4.27531,2498.3,2497.8,0.67925]
[1728266371093,4.27531,2498.3,2497.8,0.399]
[1728266371594,4.27531,2498.3,2497.8,0.67925]
[1728266372787,4.27531,2498.3,2497.8,0.399]
[1728266372989,4.27531,2498.3,2497.9,0.28024]
[1728266373391,4.27531,2498.3,2497.8,0.399]
[1728266373392,0.28022,2498.2,2497.8,0.399]
[1728266373591,0.28022,2498.2,2497.8,0.67925]
[1728266373797,0.28021,2498.2,2497.8,0.67925]
[1728266374291,0.28021,2498.2,2497.8,0.28025]
[1728266374896,4.27531,2498.3,2497.8,0.28025]
[1728266376690,7.48311,2498.3,2497.8,0.28025]
[1728266377797,7.48311,2498.3,2497.5,0.8188]
[1728266377798,7.2029,2498.3,2498.0,0.28022]
[1728266378590,7.2029,2498.3,2498.0,0.28023]
[1728266378995,4.27531,2498.3,2497.8,0.28025]
[1728266379192,3.9951,2498.3,2498.0,0.28023]
[1728266379494,1.1851,2498.3,2498.1,0.28022]
[1728266380603,1.1851,2498.3,2497.7,3.2078]
[1728266380797,1.1851,2498.3,2498.0,0.28023]
[1728266381501,1.1851,2498.3,2497.7,3.2078]
[1728266381695,1.1851,2498.3,2498.1,0.28022]
[1728266384206,1.1851,2498.3,2498.0,0.28023]
[1728266386401,1.1851,2498.3,2497.7,3.2078]
[1728266386703,1.1851,2498.3,2498.1,0.28021]
[1728266387302,5.1883,2498.3,2498.1,0.28021]
[1728266387807,8.3961,2498.3,2497.7,3.2078]
[1728266388007,4.3929,2498.3,2498.0,0.28023]
[1728266388902,4.3929,2498.3,2498.1,0.28022]
[1728266389307,8.3961,2498.3,2498.1,0.28022]
[1728266390013,5.1883,2498.3,2498.1,0.28022]
[1728266390213,8.3961,2498.3,2498.1,0.28022]
[1728266391098,8.3961,2498.3,2497.7,3.2078]
[1728266391099,4.3929,2498.3,2497.9,0.28023]
[1728266391304,4.3929,2498.3,2498.1,0.28022]
[1728266392713,3.09015,2498.8,2498.0,3.2078]
[1728266392918,3.09015,2498.8,2498.3,0.28019]
[1728266392919,4.28655,2498.8,2498.3,0.28019]
[1728266400619,1.3,2498.6,2498.1,0.8273]
[1728266400821,1.1964,2498.8,2498.5,0.28018]
[1728266401030,2.4964,2498.8,2498.5,0.28018]
[1728266401423,2.4964,2498.8,2498.4,0.28018]
[1728266402024,0.4225,2498.8,2498.7,1.58015]
[1728266402325,0.83268191,2499.6,2498.8,0.28014]
[1728266402326,0.7958,2499.2,2498.8,0.28014]
[1728266402527,0.7958,2499.2,2498.9,0.28013]
[1728266403321,0.7958,2499.2,2498.8,0.4203]
[1728266403521,2.3759,2499.2,2498.8,0.4203]
[1728266404123,2.0958,2499.2,2498.8,0.4203]
[1728266404327,0.28015,2498.8,2498.2,0.2802]
[1728266404529,4.0539,2498.7,2498.1,0.4203]
[1728266404729,4.0539,2498.7,2498.1,0.70051]
[1728266404730,4.33406,2498.7,2498.1,0.70051]
[1728266404928,2.81,2498.6,2498.1,0.4203]
[1728266405427,0.8461,2498.7,2498.3,0.28019]
[1728266405820,0.8461,2498.7,2498.1,3.2303]
[1728266405821,0.8461,2498.7,2498.2,0.28021]
[1728266406019,0.28017,2498.6,2498.1,0.70051]
[1728266406222,4.33406,2498.7,2498.1,0.4203]
[1728266406428,4.33406,2498.7,2498.2,0.28021]
[1728266406823,4.33406,2498.7,2498.1,0.4203]
[1728266406824,4.0539,2498.7,2498.1,0.4203]
[1728266407026,4.0539,2498.7,2498.2,0.28021]
[1728266407335,4.33406,2498.7,2498.2,0.28021]
[1728266407531,4.0539,2498.7,2498.1,0.4203]
[1728266407721,0.4068,2498.8,2498.2,3.2078]
[1728266407925,0.4068,2498.8,2498.4,0.28018]
[1728266408125,0.4068,2498.8,2498.5,0.28017]
[1728266408333,0.4068,2498.8,2498.5,3.48797]
[1728266408631,0.4068,2498.8,2498.7,0.28015]
[1728266408934,0.422,2499.1,2498.8,0.28014]
[1728266409134,0.422,2499.1,2498.7,0.28015]
[1728266409135,1.09561,2499.1,2498.7,0.28015]
[1728266409334,0.8155,2499.1,2498.7,0.28015]
[1728266410139,0.28016,2498.7,2498.2,0.2802]
[1728266410433,2.81,2498.8,2498.3,0.28019]
[1728266410434,0.7866,2498.6,2498.3,0.28019]
[1728266410628,0.28015,2498.8,2498.3,0.28019]
[1728266410830,0.28014,2498.9,2498.5,0.28018]
[1728266411235,3.2078,2499.0,2498.4,0.3891]
[1728266411435,0.28013,2499.0,2498.6,0.28016]
[1728266411627,0.28013,2499.0,2498.7,0.4061]
[1728266411937,0.67362,2499.1,2498.7,0.68625]
[1728266412236,0.3935,2499.1,2498.7,0.68625]
[1728266412837,0.67362,2499.1,2498.7,0.68625]
[1728266413236,0.3935,2499.1,2498.8,0.28014]
[1728266414133,0.3935,2499.1,2498.7,0.4061]
[1728266414440,0.3935,2499.1,2498.7,3.6139]
[1728266415434,0.67361,2499.1,2498.7,3.6139]
[1728266416058,0.3935,2499.1,2498.7,0.4061]
[1728266416232,0.3935,2499.1,2498.7,3.2161]
[1728266416642,0.67361,2499.1,2498.7,3.2161]
[1728266417338,0.28014,2498.8,2498.4,3.5969]
[1728266417640,0.28014,2498.8,2497.5,0.70073]
[1728266417641,0.28021,2498.2,2498.1,3.2078]
[1728266417832,0.28021,2498.2,2497.6,2.03227]
[1728266417833,0.28022,2498.2,2497.8,0.4058]
[1728266418038,2.81,2498.4,2497.8,0.4058]
[1728266418039,0.4047,2498.1,2497.8,0.4058]
[1728266418237,1.09922,2498.1,2497.8,0.4058]
[1728266418543,0.28023,2498.0,2497.8,0.4058]
[1728266419036,0.28023,2498.0,2497.3,3.2078]
[1728266419037,2.81,2498.0,2497.3,3.2078]
[1728266419247,2.81,2497.8,2497.3,3.2078]
[1728266419434,3.6135,2497.9,2497.3,3.2078]
[1728266419435,0.2803,2497.5,2497.3,3.2078]
[1728266419633,0.4032,2497.4,2497.3,3.2078]
[1728266420043,0.28032,2497.3,2497.1,3.2078]
[1728266420232,3.2132,2497.4,2497.1,3.2078]
[1728266420432,3.2132,2497.4,2497.3,3.2078]
[1728266420640,44.4135,2497.9,2497.3,3.2078]
[1728266420641,41.2057,2497.9,2497.3,3.2078]
[1728266420838,1.2215,2497.9,2497.6,3.2078]
[1728266422436,0.8158,2497.9,2497.6,3.2078]
[1728266422638,0.4238,2498.3,2497.7,0.28026]
[1728266422851,0.4238,2498.3,2497.9,3.2078]
[1728266422852,0.8257,2498.3,2497.9,3.2078]
[1728266423051,0.4137,2498.2,2497.9,3.2078]
[1728266423342,0.4137,2498.2,2497.9,3.48804]
[1728266423735,0.4238,2498.9,2497.9,6.0178]
[1728266423736,3.2338,2498.9,2497.9,6.0178]
[1728266423945,3.2338,2498.9,2497.8,0.7831]
[1728266423946,0.8156,2498.8,2498.3,3.2078]
[1728266424144,1.09575,2498.8,2498.3,3.2078]
[1728266424441,2.81,2498.6,2498.3,3.2078]
[1728266425048,2.81,2498.6,2497.8,0.7831]
[1728266425049,2.81,2498.4,2497.8,3.5968]
[1728266425251,0.8251,2498.3,2498.1,3.2078]
[1728266425936,0.8251,2498.3,2497.7,3.48806]
[1728266426345,0.8251,2498.3,2497.8,0.28026]
[1728266426548,0.8251,2498.3,2498.0,3.2078]
[1728266430643,0.8251,2498.3,2498.1,0.28022]
[1728266431450,0.8251,2498.3,2498.0,3.48803]
[1728266432049,0.8251,2498.3,2498.0,3.2078]
[1728266432246,0.8251,2498.3,2498.1,0.28022]
[1728266432438,0.8251,2498.3,2498.0,3.2078]
[1728266432648,0.8251,2498.3,2498.0,3.48803]
[1728266432951,0.8251,2498.3,2498.1,0.28022]
[1728266434744,0.8251,2498.3,2498.2,0.28021]
[1728266435246,2.81,2498.8,2498.4,0.28018]
[1728266435452,0.4099,2498.6,2498.4,0.28018]
[1728266436054,0.4099,2498.6,2498.1,3.6106]
[1728266436240,0.4099,2498.6,2498.4,0.28018]
[1728266436446,0.4099,2498.6,2498.5,0.28018]
[1728266437042,5.72126104,2499.5,2498.6,0.28017]
[1728266437243,0.3923,2499.3,2499.1,0.28011]
[1728266437550,0.3923,2499.3,2499.1,0.2801]
[1728266438055,0.837,2499.4,2499.0,2.81]
[1728266438056,0.4147,2499.4,2499.0,2.81]
[1728266438250,2.81,2499.9,2498.8,3.2078]
[1728266438251,0.8253,2499.8,2499.4,0.28007]
[1728266438452,1.24,2499.8,2499.4,0.28007]
[1728266438853,3.2078,2499.7,2499.4,0.28007]
[1728266439558,3.2078,2499.7,2499.3,0.28008]
[1728266440551,1.52003,2499.8,2499.3,0.28008]
[1728266440749,1.52003,2499.8,2499.3,3.48788]
[1728266441052,1.24,2499.8,2499.3,3.48788]
[1728266442051,2.81,2499.6,2499.3,3.48788]
[1728266442255,2.81,2499.6,2499.3,0.28008]
[1728266442462,2.81,2499.6,2499.2,0.28009]
[1728266442651,2.81,2499.6,2498.8,6.4178]
[1728266443152,2.81,2499.6,2499.1,0.2801]
[1728266443647,2.81,2499.6,2498.8,6.4178]
[1728266444253,2.81,2499.6,2499.1,3.2078]
[1728266444452,2.81,2499.4,2499.1,3.2078]
[1728266444649,2.81,2499.4,2498.9,0.28013]
[1728266444650,0.3878,2499.3,2498.9,0.28013]
[1728266444853,2.81,2499.2,2498.7,0.3832]
[1728266445060,2.81,2499.2,2498.7,3.591]
[1728266445061,2.81,2499.1,2498.7,3.591]
[1728266445256,2.81,2499.1,2498.7,0.66335]
[1728266445450,2.81,2499.1,2498.7,3.87115]
[1728266445653,3.2078,2499.2,2498.9,0.28012]
[1728266445852,3.2078,2499.2,2498.7,3.591]
[1728266445853,0.3978,2499.2,2498.7,3.591]
[1728266446051,0.8003,2499.3,2498.9,0.28013]
[1728266446666,0.8003,2499.3,2499.0,0.28012]
[1728266446952,4.0081,2499.3,2498.9,0.28013]
[1728266447156,2.81,2499.4,2499.1,0.28011]
[1728266447655,3.2078,2499.6,2499.1,0.28011]
[1728266447867,6.29785,2499.6,2499.1,0.28011]
[1728266448363,6.29785,2499.6,2498.8,3.1965]
[1728266448554,6.29785,2499.6,2498.9,0.28013]
[1728266448758,6.29785,2499.6,2499.0,0.28011]
[1728266448965,6.0178,2499.6,2498.8,3.1965]
[1728266449159,6.29786,2499.6,2499.1,0.2801]
[1728266449356,6.29786,2499.6,2499.1,3.4879]
[1728266450167,6.0178,2499.6,2499.1,3.4879]
[1728266450464,6.29786,2499.6,2499.1,3.4879]
[1728266450660,4.0355,2499.8,2499.1,3.2078]
[1728266450963,4.0355,2499.8,2499.3,0.28008]
[1728266451353,4.0355,2499.8,2499.2,0.4254]
[1728266451354,4.0355,2499.8,2499.4,0.28007]
[1728266452163,4.0355,2499.8,2499.3,0.4177]
[1728266452362,4.0355,2499.8,2499.3,0.8199]
[1728266452565,4.0355,2499.8,2499.4,0.28007]
[1728266452566,2.81,2499.6,2499.4,0.28007]
[1728266453566,2.81,2499.6,2499.3,0.4177]
[1728266453956,2.81,2499.6,2499.4,0.28007]
[1728266454354,1.2255,2499.8,2499.3,0.4177]
[1728266454561,1.2255,2499.8,2499.4,0.28008]
[1728266454866,1.2255,2499.8,2499.5,0.28006]
[1728266456966,1.2255,2499.8,2499.3,0.8189]
[1728266457162,1.2255,2499.8,2499.5,0.28006]
[1728266457360,1.2255,2499.8,2499.3,0.8189]
[1728266457565,0.8277,2499.8,2499.7,0.28004]
[1728266457963,6.70667,2500.4,2499.9,0.28002]
[1728266458168,6.70667,2500.4,2499.8,0.28002]
[1728266458169,0.4041,2500.3,2499.8,0.28002]
[1728266458461,1.09228,2500.3,2499.8,0.28003]
[1728266458863,1.09228,2500.3,2499.8,3.48783]
[1728266459366,0.84848296,2500.6,2499.9,3.51006]
[1728266459566,0.2799,2501.0,2500.6,0.27994]
[1728266459567,3.2078,2501.0,2500.6,0.27994]
[1728266459767,3.2078,2501.0,2500.5,2.81]
[1728266459768,0.4041,2500.9,2500.5,2.81]
[1728266459968,0.4041,2500.9,2500.6,0.27993]
[1728266460267,0.4041,2500.9,2500.7,0.27993]
[1728266460660,0.4041,2500.9,2500.5,0.3896]
[1728266460867,3.2141,2500.9,2500.5,0.66955]
[1728266461570,3.2141,2500.9,2500.5,0.3896]
[1728266461956,3.2141,2500.9,2500.5,0.66955]
[1728266462368,3.2141,2500.9,2500.5,0.3896]
[1728266462677,3.2141,2500.9,2500.6,0.27994]
[1728266462856,3.2141,2500.9,2500.5,3.5974]
[1728266462857,3.2141,2500.9,2500.5,3.87734]
[1728266463060,3.2141,2500.9,2500.6,0.27994]
[1728266463664,0.4041,2500.9,2500.5,3.5974]
[1728266463865,0.4041,2500.9,2500.5,4.0003]
[1728266464270,0.4041,2500.9,2500.7,0.27993]
[1728266464459,0.4041,2500.9,2500.6,0.27993]
[1728266465164,0.4041,2500.9,2500.5,4.0003]
[1728266465364,0.4041,2500.9,2500.7,0.27992]
[1728266465572,3.2078,2501.0,2500.7,0.27992]
[1728266465771,3.2078,2501.0,2500.6,0.27993]
[1728266465964,3.2078,2501.0,2500.6,0.27994]
[1728266466164,3.2078,2501.0,2500.5,4.0003]
[1728266466370,3.2078,2501.0,2500.7,0.27993]
[1728266466560,3.2078,2501.0,2500.6,0.27993]
[1728266468271,3.2078,2501.0,2500.5,4.0003]
[1728266468475,3.2078,2501.0,2500.3,2.81]
[1728266468476,0.27992,2500.8,2500.3,0.27997]
[1728266468673,0.4197,2500.7,2500.3,0.27997]
[1728266468975,0.4197,2500.7,2500.2,3.6191]
[1728266468976,0.4197,2500.7,2500.4,0.27996]
[1728266470272,3.50963,2500.7,2500.2,3.6191]
[1728266470476,0.3924,2500.6,2500.3,0.27997]
[1728266470876,0.3924,2500.6,2500.2,3.6191]
[1728266471074,0.3924,2500.6,2500.4,0.27996]
[1728266471265,0.4197,2500.7,2500.3,2.81]
[1728266471470,3.6145,2501.0,2500.4,0.27996]
[1728266471667,3.2078,2501.0,2500.7,0.27993]
[1728266471871,0.3986,2501.2,2500.8,0.4115]
[1728266472076,0.3986,2501.2,2501.0,0.27989]
[1728266472278,0.59770672,2501.8,2500.8,0.4115]
[1728266472279,3.2078,2502.3,2501.1,3.509]
[1728266472575,0.201,2504.0,2503.3,16.95053]
[1728266472876,0.201,2504.0,2503.7,3.2078]
[1728266472877,3.2078,2504.0,2503.7,3.2078]
[1728266473068,0.27955,2504.2,2503.7,3.2078]
[1728266473380,6.8104,2504.6,2503.8,4.16640087]
[1728266473573,2.81,2504.4,2503.8,4.16640087]
[1728266473878,0.27958,2503.8,2503.4,4.04968402]
[1728266474175,3.2078,2504.5,2503.4,3.2078]
[1728266474376,0.27952,2504.4,2503.9,3.2078]
[1728266474670,3.2078,2503.7,2503.6,3.2078]
[1728266474874,3.2078,2503.2,2503.1,3.2078]
[1728266475175,3.2078,2504.3,2503.1,9.2078]
[1728266475481,3.2078,2504.3,2503.7,3.2078]
[1728266475974,3.2078,2504.8,2504.0,6.6578]
[1728266476182,3.2078,2504.8,2504.4,3.2078]
[1728266476472,0.4095,2505.0,2504.4,3.2078]
[1728266476672,3.2078,2504.9,2504.4,3.2078]
[1728266477074,0.27938,2505.7,2504.7,3.2078]
[1728266477275,3.2078,2505.5,2505.3,3.2078]
[1728266477469,3.2078,2505.5,2504.5,11.62634151]
[1728266477470,9.8656,2505.4,2504.8,4.4819365]
[1728266477671,3.2078,2504.9,2504.4,3.2078]
[1728266477980,3.2078,2504.7,2504.4,3.2078]
[1728266478584,3.2078,2504.5,2504.4,3.2078]
[1728266478991,3.2078,2505.0,2504.4,13.2006]
[1728266479171,3.2078,2505.0,2504.7,3.2078]
[1728266479574,3.2078,2505.3,2504.7,3.2078]
[1728266479575,3.2078,2504.8,2504.7,3.2078]
[1728266479776,3.2078,2504.9,2504.7,3.2078]
[1728266480083,0.4075,2505.7,2504.7,3.2078]
[1728266480084,3.2078,2505.2,2504.7,3.2078]
[1728266480277,3.2078,2505.2,2505.1,3.2078]
[1728266480873,3.2078,2505.7,2505.1,3.2078]
[1728266480874,3.48718,2505.7,2505.1,3.2078]
[1728266481184,3.2078,2505.6,2505.1,3.45]
[1728266481375,3.2078,2505.6,2505.5,3.2078]
[1728266481581,0.27932,2506.2,2505.5,3.2078]
[1728266481783,3.2078,2505.8,2505.5,3.2078]
[1728266481974,3.2078,2506.1,2505.5,3.2078]
[1728266482283,1.51910467,2507.0,2506.0,6.6578]
[1728266482482,1.51910467,2507.0,2506.9,6.6578]
[1728266482685,4.72690467,2507.0,2506.6,3.2078]
[1728266482883,4.72690467,2507.0,2506.3,3.2078]
[1728266482884,0.27926,2506.7,2506.3,3.2078]
[1728266483089,1.51910467,2507.0,2506.6,3.2078]
[1728266483382,1.51910467,2507.0,2506.9,6.6578]
[1728266483584,0.12216274,2507.0,2506.9,6.6578]
[1728266483787,0.12216274,2507.0,2506.9,20.95545149]
[1728266483984,3.2078,2507.8,2506.9,20.95545149]
[1728266484287,0.0060423,2508.8,2507.1,3.2078]
[1728266484288,3.90557,2508.1,2507.1,3.2078]
[1728266484584,0.27922,2507.1,2506.7,3.2078]
[1728266484783,5.98279909,2507.0,2506.2,3.2078]
[1728266484987,4.57789,2507.7,2506.2,4.23003253]
[1728266484988,3.05427909,2506.5,2506.2,4.23003253]
[1728266485179,2.77499909,2506.7,2506.1,3.2078]
[1728266485384,3.05425909,2506.7,2506.1,3.2078]
[1728266485585,2.77499909,2506.4,2506.1,3.2078]
[1728266485781,0.69808,2507.0,2506.1,3.2078]
[1728266485782,2.77499909,2506.2,2506.1,3.2078]
[1728266485987,0.27932,2506.2,2506.1,3.2078]
[1728266486283,3.05431909,2506.2,2506.1,3.2078]
[1728266487591,0.27936,2505.8,2505.7,3.2078]
[1728266487794,5.98279909,2506.2,2505.4,3.2078]
[1728266487795,0.27939,2505.5,2505.4,3.2078]
[1728266487985,0.27942,2505.3,2504.8,3.2078]
[1728266488185,2.77499909,2505.4,2504.8,3.2078]
[1728266488186,3.05440909,2505.4,2504.8,3.2078]
[1728266488592,3.2078,2505.8,2505.1,3.2078]
[1728266488891,0.27942,2505.3,2505.1,3.2078]
[1728266489187,2.77499909,2505.4,2505.1,3.2078]
[1728266489393,3.2078,2505.9,2505.1,3.2078]
[1728266489582,2.77499909,2505.5,2505.1,3.2078]
[1728266489788,3.05439909,2505.5,2505.1,3.2078]
[1728266489988,2.77499909,2505.5,2505.1,3.2078]
[1728266490194,3.05439909,2505.5,2505.1,3.2078]
[1728266490384,2.77499909,2505.4,2505.1,3.2078]
[1728266490585,2.77499909,2505.4,2504.8,3.2078]
[1728266490586,0.27946,2504.9,2504.8,3.2078]
[1728266490791,0.27948,2504.8,2504.4,3.2078]
[1728266490987,0.27942,2505.3,2504.7,3.2078]
[1728266491189,2.77499909,2505.1,2504.7,3.2078]
[1728266491391,3.05443909,2505.1,2504.7,3.2078]
[1728266491594,0.27947,2504.9,2504.7,3.2078]
[1728266491793,0.27947,2504.8,2504.7,3.2078]
[1728266492793,3.2078,2505.4,2504.7,3.2078]
[1728266492991,2.77499909,2504.9,2504.7,3.2078]
[1728266493601,0.27947,2504.8,2504.7,3.2078]
[1728266494290,3.05446909,2504.8,2504.7,3.2078]
[1728266496195,0.27951,2504.5,2504.4,3.2078]
[1728266496394,2.77499909,2504.2,2504.0,3.2078]
[1728266496597,0.27959,2503.8,2503.7,3.2078]
[1728266496794,0.2796,2503.7,2503.4,3.2078]
[1728266496995,0.27961,2503.6,2503.4,3.2078]
[1728266497197,0.27962,2503.5,2503.4,3.2078]
[1728266497803,3.05461909,2503.5,2503.4,3.2078]
[1728266498900,2.77499909,2503.5,2503.1,3.2078]
[1728266499094,0.27965,2503.3,2503.1,3.2078]
[1728266499399,0.3841,2503.7,2503.1,3.2078]
[1728266499400,3.05464909,2503.2,2503.1,3.2078]
[1728266499705,3.05464909,2503.2,2503.1,3.1078]
[1728266500000,2.77499909,2503.2,2503.1,3.1078]
[1728266501607,2.77499909,2503.2,2502.7,3.2078]
[1728266501608,0.27966,2503.1,2502.7,3.2078]
[1728266501796,2.77499909,2503.0,2502.7,3.2078]
[1728266501997,3.05468909,2502.9,2502.7,3.2078]
[1728266502202,2.77499909,2502.9,2502.7,3.2078]
[1728266502408,0.27961,2503.6,2502.7,9.2078]
[1728266502600,2.77499909,2503.2,2503.1,3.2078]
[1728266505303,0.3841,2503.7,2503.1,9.2078]
[1728266505512,2.77499909,2503.6,2503.4,3.2078]
[1728266505704,2.77499909,2503.7,2503.4,3.2078]
[1728266505908,2.77499909,2503.9,2503.4,3.2078]
[1728266506201,2.77499909,2503.9,2503.7,3.2078]
[1728266508103,0.8073,2504.5,2503.7,9.2078]
[1728266508299,2.77499909,2504.1,2503.5,0.27961]
[1728266508602,2.77499909,2504.1,2504.0,3.2078]
[1728266509308,2.77499909,2504.1,2504.0,3.18763275]
[1728266513410,0.8073,2504.5,2504.0,9.18763275]
[1728266513612,0.8073,2504.5,2504.4,3.2078]
[1728266514016,3.58229909,2504.5,2504.4,3.2078]
[1728266514206,2.77499909,2504.5,2504.4,3.2078]
[1728266516311,0.3952,2504.9,2504.4,3.2078]
[1728266516524,0.3952,2504.9,2504.7,3.2078]
[1728266516712,2.77499909,2504.8,2504.7,3.2078]
[1728266517214,2.77499909,2504.8,2504.3,3.2078]
[1728266517414,2.77499909,2504.4,2504.3,3.2078]
[1728266520217,2.77499909,2504.4,2503.9,0.27957]
[1728266520218,2.77499909,2504.4,2503.9,3.2078]
[1728266520414,3.603,2504.9,2504.2,3.2078]
[1728266520918,2.77499909,2504.3,2504.2,3.2078]
[1728266522220,2.77499909,2504.3,2503.7,3.2078]
[1728266522420,0.3956,2504.2,2503.7,3.2078]
[1728266522624,2.77499909,2503.8,2503.7,3.2078]
[1728266522820,2.77499909,2503.8,2502.8,4.19]
[1728266522821,2.77499909,2503.8,2503.4,3.2078]
[1728266523026,0.27957,2503.9,2502.9,0.4179]
[1728266523027,2.77499909,2503.2,2503.1,3.2078]
[1728266524714,2.77499909,2503.2,2502.9,0.69758]
[1728266524715,2.77499909,2503.2,2502.9,0.4179]
[1728266524918,2.77499909,2503.0,2502.7,3.4875]
[1728266525221,3.2078,2503.5,2502.7,3.2078]
[1728266525222,2.77499909,2502.8,2502.7,3.2078]
[1728266528622,2.77499909,2502.8,2502.7,3.48751]
[1728266529227,0.3939,2503.3,2502.9,0.27968]
[1728266529429,2.77499909,2503.0,2502.9,0.27968]
[1728266530920,2.77499909,2503.0,2502.7,3.2078]
[1728266530921,2.77499909,2503.0,2502.8,0.27969]
[1728266531121,2.77499909,2502.9,2502.8,0.27969]
[1728266531323,2.77499909,2502.9,2502.7,3.4875]
[1728266531527,2.77499909,2502.8,2502.7,3.4875]
[1728266532125,2.77499909,2502.8,2502.7,3.2078]
[1728266532323,2.77499909,2502.8,2502.7,3.48751]
[1728266535224,0.4093,2503.4,2502.7,3.2078]
[1728266535423,0.4093,2503.4,2503.0,3.2078]
[1728266535626,0.4093,2503.4,2503.2,0.27964]
[1728266536132,2.77499909,2503.3,2503.0,3.2078]
[1728266536327,0.4093,2503.4,2503.3,0.27964]
[1728266536527,2.77499909,2503.1,2503.0,3.48747]
[1728266537328,1.95743909,2503.1,2503.0,3.48747]
[1728266537527,4.2859,2503.9,2503.6,0.27961]
[1728266537927,1.95743909,2503.7,2503.6,0.27961]
[1728266538125,2.46137,2503.9,2503.8,0.27958]
[1728266538324,1e-05,2503.9,2503.8,6.27958]
[1728266538625,5.196,2505.3,2503.8,6.27958]
[1728266538626,0.3958,2505.0,2504.9,0.27946]